[Event "FIDE WTC Prel-B 2022"]
[Site "Jerusalem"]
[Date "2022.11.21"]
[Round "4.17"]
[White "Vidit, Santosh Gujrathi"]
[Black "Yakubboev, Nodirbek"]
[Result "0-1"]
[ECO "E54"]
[WhiteElo "2724"]
[BlackElo "2667"]
[Annotator "TA"]
[PlyCount "126"]
[EventDate "2022.11.20"]
[EventType "team-tourn"]
[EventCountry "ISR"]
[SourceTitle "playchess.com"]
[Source "ChessBase"]
[SourceQuality "1"]
[WhiteTeam "India"]
[BlackTeam "Uzbekistan"]
[WhiteTeamCountry "IND"]
[BlackTeamCountry "UZB"]
[TimeControl "2700+10"]

{[%evp 25,126,0,0,0,0,0,0,6,2,0,20,0,12,0,11,0,12,8,27,16,10,-13,-9,-29,-15,-12,0,-49,0,0,0,0,0,-27,-19,-54,-67,-88,-77,-73,0,-6,0,0,0,0,0,0,0,0,0,0,0,0,0,0,0,0,0,0,0,0,0,0,0,0,0,0,0,0,0,0,0,0,0,0,0,0,0,0,0,0,0,0,0,0,0,0,0,0,0,0,0,0,0,0,0,-236,-229,-29979,-29980,-29980,-29981]} 1. d4 {[%emt 0:00:23]} Nf6 {[%emt 0:00:02]} 2. c4 {[%emt 0:00:03]} e6 {[%emt 0:00:02]} 3. Nc3 {[%emt 0:00:18]} Bb4 {[%emt 0:00:02]} 4. e3 {[%emt 0:01:35]} O-O {[%emt 0:00:14]} 5. Bd3 {[%emt 0:00:05]} d5 {[%emt 0:00:01]} 6. Nf3 {[%emt 0:00:22]} dxc4 {[%emt 0:00:03]} 7. Bxc4 {[%emt 0:00:02]} c5 {[%emt 0:00:01]} 8. O-O {[%emt 0:00:11]} cxd4 {[%emt 0:00:08]} 9. exd4 {[%emt 0:00:02]} b6 {[%emt 0:00:08]} 10. Bg5 {[%emt 0:00:38]} Bxc3 {[%emt 0:00:49]} 11. bxc3 {[%emt 0:00:05]} Bb7 {[%emt 0:00:03]} 12. Qe2 {[%emt 0:02:06]} Nbd7 {[%emt 0:00:54]} 13. Rac1 {[%emt 0:00:17]} Qc7 {[%emt 0:07:33]} 14. Nd2 {[%emt 0:00:07][%cal Bf3d2,Bd2f1,Bf1e3][%mdl 32] E54: Nimzo-Indian: Rubinstein: Main Line: 7...dxc4 8 Bxc4.} Nd5 {[%emt 0:01:26]} 15. Bxd5 {[%emt 0:00:22]} exd5 {[%emt 0:01:24]} 16. Rfe1 {[%emt 0:00:03] The position is equal.} f6 {[%emt 0:00:50]} 17. Bh4 {[%emt 0:01:02] [#]} Qc6 $146 {[%emt 0:02:23]} ({Predecessor:} 17... Rfe8 18. Qxe8+ Rxe8 19. Rxe8+ Kf7 20. Rce1 Nf8 21. Bg3 Qd7 22. R8e3 Bc6 23. Nf3 Ba4 24. h3 h5 25. Nd2 Ng6 26. Nf3 {½-½ (26) Tyulenko,Y (2395)-Dobrica,D (2318) ICCF email 2011}) 18. Nf1 {[%emt 0:02:14]} Rf7 {[%emt 0:04:17]} 19. Bg3 {[%emt 0:03:58]} Nf8 {[%emt 0:06:50]} 20. h4 {[%emt 0:00:11][%cal Bh2h4,Bh4h5][%mdl 32]} Qd7 {[%emt 0:00:03]} 21. h5 {[%emt 0:00:21]} Bc6 {[%emt 0:00:03]} 22. Ne3 {[%emt 0:05:54]} Re8 {[%emt 0:06:55]} 23. Qf3 {[%emt 0:02:30]} f5 $1 {[%emt 0:02:24][%cal Of5f4] With the idea ...f4!} 24. Nf1 {[%emt 0:06:09]} Re4 {[%emt 0:01:19]} 25. Be5 {[%emt 0:00:47]} Ne6 {[%emt 0:00:15]} 26. Qd1 {[%emt 0:09:16]} (26. h6 $11) 26... Rxe1 {[%emt 0:01:52]} (26... Rh4 $15 {should be considered.}) 27. Qxe1 $11 {[%emt 0:00:02]} f4 {[%emt 0:00:02]} 28. f3 {[%emt 0:04:19][%cal Oh5h6]} h6 {[%emt 0:00:01]} 29. Qh4 {[%emt 0:00:03]} Rf5 {[%emt 0:00:02]} 30. g4 {[%emt 0:00:31] [#]} Rxe5 {[%emt 0:04:28]} 31. dxe5 {[%emt 0:00:02]} d4 {[%emt 0:00:01]} 32. Nh2 {[%emt 0:01:17] [#]} d3 {[%emt 0:02:11]} (32... Ng5 $1 $17 33. Kf1 Bxf3) 33. Rd1 {[%emt 0:00:02]} Ng5 {[%emt 0:00:49]} 34. Kg2 {[%emt 0:02:44]} d2 {[%emt 0:00:57]} 35. e6 $1 {[%emt 0:00:01]} Qxe6 {[%emt 0:01:30] ( -> ...Qe2+)} (35... Nxe6 $5 36. Qf2 $8 Ng5 $11) 36. Rxd2 {[%emt 0:00:03]} Kh7 {[%emt 0:00:08][%cal Oc6f3] And now ...Bxf3+! would win.} 37. Rd4 {[%emt 0:02:15]} Bxf3+ {[%emt 0:00:52][%mdl 64] Decoy} 38. Nxf3 {[%emt 0:00:41]} Nxf3 {[%emt 0:00:02] The board is on fire.} 39. Kxf3 {[%emt 0:00:14]} Qe3+ {[%emt 0:00:01]} 40. Kg2 {[%emt 0:00:01]} f3+ {[%emt 0:00:02]} 41. Kh3 $1 {[%emt 0:00:27]} Qe2 {[%emt 0:00:34][%csl Gf3][%cal Re2g2]} 42. Qg3 {[%emt 0:00:13] Against Qg2+. Strongly threatening Qg1.} f2 {[%emt 0:00:16] Inhibits Qg1.} 43. Rf4 {[%emt 0:00:09]} f1=Q+ {[%emt 0:00:03]} 44. Rxf1 {[%emt 0:00:01]} Qxf1+ {[%emt 0:00:02][%mdl 4096] Endgame KQ-KQ} 45. Kh2 {[%emt 0:00:10]} Qe2+ {[%emt 0:00:07]} 46. Qg2 {[%emt 0:00:13]} Qe5+ {[%emt 0:00:17]} 47. Qg3 {[%emt 0:00:03]} Qd5 {[%emt 0:00:18]} 48. Qf2 {[%emt 0:00:08]} Qe4 {[%emt 0:00:13]} 49. Kg3 {[%emt 0:00:27]} Qe5+ {[%emt 0:00:01]} 50. Kg2 {[%emt 0:00:02]} Qxc3 {[%emt 0:00:05]} 51. Qf5+ {[%emt 0:00:01]} Kg8 {[%emt 0:00:01] Hoping for ...Qb2+.} 52. Qe6+ {[%emt 0:00:19]} Kf8 {[%emt 0:00:02]} 53. Qd6+ {[%emt 0:00:08]} Kf7 {[%emt 0:00:08]} 54. Qd7+ {[%emt 0:00:16]} Kf6 {[%emt 0:00:06] aiming for ...Kg5.} 55. Qxa7 {[%emt 0:00:13]} Qd4 {[%emt 0:00:41]} 56. Kg3 {[%emt 0:00:06]} Qe3+ {[%emt 0:00:04]} 57. Kg2 {[%emt 0:00:08]} Qe4+ {[%emt 0:00:09]} 58. Kg3 {[%emt 0:00:01]} Qe5+ {[%emt 0:00:01]} 59. Kg2 {[%emt 0:00:22]} b5 {[%emt 0:00:30][%cal Bb6b5,Bb5b4][%mdl 32] ...Kg5 is the strong threat.} 60. Qf2+ {[%emt 0:00:13]} Kg5 {[%emt 0:00:05]} 61. Qg3 {[%emt 0:00:13]} (61. Kh3 $1 $11) 61... Qe4+ $19 {[%emt 0:00:07]} 62. Kf2 $2 {[%emt 0:00:10]} (62. Kh2 $19) 62... Qf4+ {[%emt 0:00:13]} 63. Qf3 {[%emt 0:00:03]} b4 {[%emt 0:00:30] Weighted Error Value: White=0.25 (precise) /Black=0.04 (flawless)} 0-1

[Event "FIDE WTC Prel-B 2022"]
[Site "Jerusalem"]
[Date "2022.11.21"]
[Round "4.18"]
[White "Sindarov, Javokhir"]
[Black "Nihal Sarin"]
[Result "1-0"]
[ECO "C50"]
[WhiteElo "2654"]
[BlackElo "2670"]
[Annotator "TA"]
[PlyCount "87"]
[EventDate "2022.11.20"]
[EventType "team-tourn"]
[EventCountry "ISR"]
[SourceTitle "playchess.com"]
[Source "ChessBase"]
[SourceQuality "1"]
[WhiteTeam "Uzbekistan"]
[BlackTeam "India"]
[WhiteTeamCountry "UZB"]
[BlackTeamCountry "IND"]
[TimeControl "2700+10"]

{[%evp 17,87,0,0,0,0,0,0,0,0,0,0,-7,16,0,0,0,0,0,6,0,0,0,0,0,21,12,14,12,18,12,12,16,21,0,0,0,111,109,113,103,60,64,72,8,16,16,13,27,45,74,146,139,443,399,560,558,600,605,599,540,1083,948,825,833,693,451,1442,0,29978,29979,29990,29991]} 1. e4 {[%emt 0:00:02]} e5 {[%emt 0:00:08]} 2. Nf3 {[%emt 0:00:02]} Nc6 {[%emt 0:00:07]} 3. Bc4 {[%emt 0:00:01]} Bc5 {[%emt 0:00:04]} 4. Nc3 {[%emt 0:00:02]} Nf6 {[%emt 0:00:03]} 5. d3 {[%emt 0:00:01]} h6 {[%emt 0:00:02]} 6. O-O {[%emt 0:00:03]} O-O {[%emt 0:00:13]} 7. h3 {[%emt 0:00:07]} a6 {[%emt 0:00:12]} 8. Be3 $1 {[%emt 0:00:02][%mdl 4] outshines the older 8.a3.} Bxe3 {[%emt 0:00:02]} 9. fxe3 {[%emt 0:00:02]} d6 {[%emt 0:00:01]} 10. d4 {[%emt 0:00:02] C50: Hungarian Defence and Giuoco Pianissimo.} b5 {[%emt 0:00:05]} 11. Bd3 {[%emt 0:00:05]} Re8 {[%emt 0:00:02] [#]} 12. d5 $146 {[%emt 0:00:09] The position is equal.} ({Predecessor:} 12. a3 Rb8 13. Qd2 Bb7 14. Qf2 Na5 15. Nh4 Kh8 16. Nf5 Nh7 17. b4 Nc4 18. a4 {1-0 (33) Demchenko,A (2597)-Mastrovasilis,A (2518) Kavala 2021}) 12... Ne7 {[%emt 0:00:24]} 13. Nd2 {[%emt 0:00:07]} Rf8 {[%emt 0:00:10]} 14. Kh2 {[%emt 0:09:22][%cal Of1f6]} Bd7 {[%emt 0:00:10]} 15. a4 {[%emt 0:03:15][%cal Ra4b5]} Rb8 {[%emt 0:03:43]} 16. axb5 {[%emt 0:01:01]} axb5 {[%emt 0:00:02]} 17. b4 {[%emt 0:00:21]} c6 {[%emt 0:04:28][%cal Rc6d5]} 18. dxc6 {[%emt 0:00:04]} (18. Rxf6 {looks sharper.} gxf6 19. dxc6 Bxc6 20. Qh5) 18... Nxc6 {[%emt 0:01:48]} 19. Rb1 {[%emt 0:09:20]} (19. Nxb5 Nxb4 20. Nxd6 Bg4 $1 21. hxg4 Qxd6 $15) 19... Na7 {[%emt 0:14:30]} 20. Qe2 {[%emt 0:01:01]} Rc8 {[%emt 0:00:01]} 21. Nd5 {[%emt 0:04:07]} Nxd5 {[%emt 0:00:02]} 22. exd5 {[%emt 0:00:01]} f5 {[%emt 0:00:01] Threatens to win with ...e4.} 23. e4 {[%emt 0:01:34][%cal Re4f5]} f4 {[%emt 0:00:01]} 24. Ra1 {[%emt 0:01:26]} Rc7 {[%emt 0:00:01]} 25. Nf3 {[%emt 0:06:32]} g5 {[%emt 0:00:49]} 26. Ra6 {[%emt 0:00:25]} Qf6 {[%emt 0:08:07]} (26... Be8 $11) 27. Rfa1 $1 $16 {[%emt 0:03:38]} Nc8 {[%emt 0:00:22]} 28. Bxb5 {[%emt 0:00:31] White is more active.} g4 {[%emt 0:00:11]} 29. hxg4 {[%emt 0:00:07]} Bxg4 {[%emt 0:00:02]} 30. Rh1 {[%emt 0:03:06]} (30. R6a3 $16) 30... Kh7 $11 {[%emt 0:05:57]} 31. Kg1 $36 {[%emt 0:00:05][%mdl 2048] White is pushing.} Rg8 {[%emt 0:00:04]} (31... Bxf3 32. gxf3 (32. Qxf3 Rxc2 33. Bf1 Rg8 $11) 32... Rg8+ 33. Kf1 $16) 32. Kf1 {[%emt 0:00:30]} Rcg7 {[%emt 0:04:43][%cal Og4h5]} 33. Qf2 {[%emt 0:00:28]} Bxf3 {[%emt 0:02:46]} ({Black should play} 33... Rb7 34. c4 Qg6) 34. gxf3 $16 {[%emt 0:00:02]} (34. Qxf3 $2 Rg3 35. Qh5 R8g5 $19) 34... Rg3 $2 {[%emt 0:00:01][%mdl 8192] [#]} (34... Rb7 $16 {is a better chance.}) 35. Bd7 $1 $18 {[%emt 0:00:36][%cal Bb5d7,Bd7e6,Be6f5][%mdl 32]} Ne7 {[%emt 0:01:06]} (35... Qe7 $142 36. Qh2 Qg5 37. Bf5+ Kg7) 36. Be6 {[%emt 0:00:30]} R8g6 {[%emt 0:00:06]} 37. Rxd6 {[%emt 0:01:13][%cal Ba6d6,Bd6d7,Bd7e7][%mdl 32]} Qg5 {[%emt 0:00:03]} 38. Rd7 {[%emt 0:00:40] Bf5 is the strong threat.} Rg2 {[%emt 0:00:25]} 39. Qc5 {[%emt 0:00:25]} Rg7 {[%emt 0:00:05] [#]} 40. Rxe7 $1 {[%emt 0:00:24]} Rxe7 {[%emt 0:00:11]} 41. Bf5+ {[%emt 0:00:11]} Kg7 {[%emt 0:00:29] [#]} (41... Kg8 $142 42. Rxh6 Qxh6 43. Kxg2 Rg7+ 44. Bg4 (44. Kf1 $2 Qh1+ 45. Ke2 Rg2+ 46. Kd3 Qd1+ 47. Kc4 Rxc2+ 48. Kb5 Rxc5+ $19) 44... Rg6) 42. d6 $2 {[%emt 0:00:02]} (42. Rh5 $3 $18 {[%mdl 512]} Rg1+ (42... Rf2+ 43. Kxf2) 43. Qxg1 Qxg1+ 44. Kxg1) 42... Qg3 {[%emt 0:00:10][%mdl 8192]} 43. Rh3 {[%emt 0:00:10]} Qg5 {[%emt 0:00:12]} 44. dxe7 {[%emt 0:00:06] Weighted Error Value: White=0.33/Black=0.53} 1-0

[Event "FIDE WTC Prel-B 2022"]
[Site "Jerusalem"]
[Date "2022.11.21"]
[Round "4.19"]
[White "Narayanan.S.L"]
[Black "Vokhidov, Shamsiddin"]
[Result "1/2-1/2"]
[ECO "C83"]
[WhiteElo "2673"]
[BlackElo "2568"]
[Annotator "TA"]
[PlyCount "79"]
[EventDate "2022.11.20"]
[EventType "team-tourn"]
[EventCountry "ISR"]
[SourceTitle "playchess.com"]
[Source "ChessBase"]
[SourceQuality "1"]
[WhiteTeam "India"]
[BlackTeam "Uzbekistan"]
[WhiteTeamCountry "IND"]
[BlackTeamCountry "UZB"]
[TimeControl "2700+10"]

{[%evp 21,79,44,25,30,69,31,33,42,50,38,43,39,53,47,38,20,43,0,0,0,0,0,22,22,25,24,23,23,23,32,21,28,24,10,10,8,69,8,8,0,0,0,0,0,0,0,8,0,0,0,0,0,8,0,0,0,8,0,3,0]} 1. e4 {[%emt 0:00:03]} e5 {[%emt 0:00:02]} 2. Nf3 {[%emt 0:00:03]} Nc6 {[%emt 0:00:02]} 3. Bb5 {[%emt 0:00:03][%cal Bf1b5,Bb5a4,Ba4b3,Bb3c2,Bc2b1][%mdl 32]} a6 {[%emt 0:00:02]} 4. Ba4 {[%emt 0:00:03]} Nf6 {[%emt 0:00:04]} 5. O-O {[%emt 0:00:17]} Nxe4 {[%emt 0:00:02]} 6. d4 {[%emt 0:00:06]} b5 {[%emt 0:00:02]} 7. Bb3 {[%emt 0:00:02]} d5 {[%emt 0:00:01]} 8. dxe5 {[%emt 0:00:13]} Be6 {[%emt 0:00:02]} 9. c3 {[%emt 0:01:06]} Be7 {[%emt 0:00:02]} 10. Nbd2 {[%emt 0:01:35]} Nc5 {[%emt 0:00:05]} 11. Bc2 {[%emt 0:01:45]} d4 {[%emt 0:00:02]} 12. Nb3 {[%emt 0:00:02][%cal Rf3d4] C83: Open Ruy Lopez: 9 c3 Be7.} d3 {[%emt 0:01:12]} 13. Bb1 {[%emt 0:00:04] Nxc5 is the strong threat.} Nxb3 {[%emt 0:00:02]} 14. axb3 {[%emt 0:00:02] White is slightly better.} Bf5 {[%emt 0:00:02]} 15. Re1 {[%emt 0:02:36]} O-O {[%emt 0:00:39]} 16. b4 {[%emt 0:01:32]} Qd7 {[%emt 0:00:49]} 17. Bf4 {[%emt 0:01:26]} Rfd8 {[%emt 0:00:32]} 18. h3 {[%emt 0:04:59]} a5 {[%emt 0:00:07]} 19. bxa5 {[%emt 0:00:09]} (19. g4 $5 {[%cal Rg4f5]} Bg6 20. Ba2 $11 (20. bxa5 Rxa5 21. Ba2 Qc8 $11)) 19... Rxa5 {[%emt 0:00:02]} 20. Rxa5 {[%emt 0:00:11]} Nxa5 {[%emt 0:00:02]} 21. Nd4 {[%emt 0:05:55]} c5 {[%emt 0:02:08]} (21... g5 $5 {[%cal Rg5f4]} 22. b4 Nc4 $11) 22. e6 $1 {[%emt 0:00:02]} fxe6 {[%emt 0:00:01]} 23. Nxf5 {[%emt 0:00:02]} exf5 {[%emt 0:00:01] [#]} 24. Qxd3 {[%emt 0:00:05]} Qxd3 {[%emt 0:00:04]} 25. Bxd3 {[%emt 0:00:02]} Rxd3 {[%emt 0:00:01]} 26. Rxe7 $11 {[%emt 0:00:02][%mdl 4096] [#] Endgame KRB-KRN} Nc4 $146 {[%emt 0:07:59]} ({Predecessor:} 26... Rd5 27. Ra7 Nc6 28. Rb7 c4 29. Be3 Nd8 30. Rc7 Ne6 31. Re7 Rd6 32. f4 h5 {½-½ (40) Puranik,A (2604)-Priasmoro,N (2502) Sitges 2021}) 27. Rb7 {[%emt 0:07:04]} Nxb2 {[%emt 0:00:57]} 28. Rxb5 {[%emt 0:00:02]} Nd1 {[%emt 0:09:59]} (28... Na4 $1 $11) 29. Be5 {[%emt 0:01:12]} (29. Rxc5 $14 Nxc3 30. Rxf5) 29... Nxc3 {[%emt 0:00:25] The position is equal.} 30. Rb7 {[%emt 0:02:15]} g6 {[%emt 0:00:36]} 31. Rg7+ {[%emt 0:00:24]} Kf8 {[%emt 0:00:02]} 32. Rxh7 {[%emt 0:00:01]} Ne4 {[%emt 0:02:30]} 33. f3 {[%emt 0:01:35]} Ng5 {[%emt 0:01:46]} 34. Ra7 {[%emt 0:00:08]} Ne6 {[%emt 0:01:00]} 35. h4 {[%emt 0:00:45]} Rd5 {[%emt 0:02:02]} 36. Bf6 {[%emt 0:02:42]} f4 {[%emt 0:00:58]} 37. Re7 {[%emt 0:03:18]} Rd6 {[%emt 0:00:26]} 38. Ra7 {[%emt 0:00:43] [#] aiming for Be7+.} Rd5 {[%emt 0:00:03]} 39. Re7 {[%emt 0:01:02]} Rd6 {[%emt 0:00:02]} 40. Ra7 {[%emt 0:00:06] Weighted Error Value: White=0.08 (flawless) /Black=0.08 (flawless)} 1/2-1/2

[Event "FIDE WTC Prel-B 2022"]
[Site "Jerusalem"]
[Date "2022.11.21"]
[Round "4.20"]
[White "Vakhidov, Jakhongir"]
[Black "Gupta, Abhijeet"]
[Result "1-0"]
[ECO "A28"]
[WhiteElo "2607"]
[BlackElo "2616"]
[Annotator "TA"]
[PlyCount "101"]
[EventDate "2022.11.20"]
[EventType "team-tourn"]
[EventCountry "ISR"]
[SourceTitle "playchess.com"]
[Source "ChessBase"]
[SourceQuality "1"]
[WhiteTeam "Uzbekistan"]
[BlackTeam "India"]
[WhiteTeamCountry "UZB"]
[BlackTeamCountry "IND"]
[TimeControl "2700+10"]

{[%evp 9,101,0,0,14,0,0,21,0,6,0,0,0,0,0,18,9,9,9,15,5,38,0,0,0,0,0,26,0,0,0,0,0,40,0,40,40,60,49,72,72,72,72,72,72,72,72,76,75,72,0,76,76,88,64,58,50,87,84,179,189,332,311,679,683,745,656,743,630,918,928,972,960,1090,1016,1983,2018,1992,1392,1333,1325,1260,1255,1227,1208,1136,1122,1896,1816,1295,527,29984,29985,29983,2725]} 1. c4 {[%emt 0:00:06]} Nf6 {[%emt 0:00:04]} 2. Nc3 {[%emt 0:00:06]} e5 {[%emt 0:00:03]} 3. Nf3 {[%emt 0:00:02]} Nc6 {[%emt 0:00:02]} 4. e4 {[%emt 0:00:02]} Bb4 {[%emt 0:00:08]} 5. d3 {[%emt 0:00:02]} d6 {[%emt 0:00:03]} 6. a3 {[%emt 0:00:02] A28: English Opening: Four Knights Variation.} Bxc3+ {[%emt 0:00:04]} 7. bxc3 {[%emt 0:00:01]} h6 {[%emt 0:00:03]} 8. g3 {[%emt 0:00:08] The position is equal.} Be6 {[%emt 0:00:03]} 9. Bg2 {[%emt 0:00:09]} Qd7 {[%emt 0:00:03]} 10. Rb1 {[%emt 0:00:13]} b6 {[%emt 0:00:04]} 11. Nh4 {[%emt 0:00:29]} O-O {[%emt 0:04:49]} 12. O-O {[%emt 0:00:23]} Bh3 {[%emt 0:00:58]} 13. f4 {[%emt 0:00:50]} Bxg2 {[%emt 0:00:02]} 14. Kxg2 {[%emt 0:00:09]} exf4 {[%emt 0:01:25]} 15. Bxf4 {[%emt 0:04:29] [#]} Nh7 $146 {[%emt 0:00:28]} ({Predecessor:} 15... Qe6 16. Nf5 Rae8 17. Rb2 Ne5 18. Kg1 Kh7 19. Rg2 Ng8 20. g4 f6 21. h4 a6 {½-½ (40) Kahl,F (2361)-Markus,R (2387) LSS email 2019}) 16. Nf5 {[%emt 0:08:55] Qg4 is the strong threat.} Ne7 {[%emt 0:01:48]} 17. g4 {[%emt 0:01:35]} Kh8 {[%emt 0:02:48]} 18. Kh1 {[%emt 0:04:02]} Rae8 {[%emt 0:02:35]} 19. Rb2 {[%emt 0:00:27]} f6 {[%emt 0:05:15]} 20. Rg2 {[%emt 0:03:58]} Ng6 {[%emt 0:00:09]} 21. Bg3 {[%emt 0:04:29]} Ne5 {[%emt 0:01:40]} 22. h4 {[%emt 0:04:15]} c6 {[%emt 0:06:03]} 23. Ne3 {[%emt 0:01:02]} a6 {[%emt 0:09:06] [#]} 24. a4 $1 {[%emt 0:00:13]} b5 {[%emt 0:00:18]} 25. axb5 {[%emt 0:00:36]} axb5 {[%emt 0:00:19]} 26. cxb5 {[%emt 0:00:01]} cxb5 {[%emt 0:00:01]} 27. Qe2 {[%emt 0:01:50]} Ra8 {[%emt 0:03:48]} 28. Nd5 {[%emt 0:06:35] aiming for Nb6.} Ra6 {[%emt 0:00:03] Inhibits Nb6.} 29. d4 {[%emt 0:02:54]} ({White should try} 29. Bf2 $16) 29... Nc4 {[%emt 0:04:14]} (29... Nxg4 $11 {remains equal.} 30. Nb4 Ra7) 30. Qf3 $16 {[%emt 0:00:34] White is more active.} Rfa8 {[%emt 0:02:29]} 31. Rff2 {[%emt 0:00:10]} Ra1+ {[%emt 0:00:47]} 32. Kh2 {[%emt 0:00:01]} Qd8 {[%emt 0:00:28]} 33. Qf5 {[%emt 0:00:31] Black is now going downhill.} Rd1 {[%emt 0:00:06] [#]} (33... Qe8 $16) 34. Ra2 $1 $18 {[%emt 0:00:14][%cal Od5e7]} Rxa2 {[%emt 0:00:10]} (34... Ra1 $142 35. Rxa1 Rxa1) 35. Rxa2 {[%emt 0:00:01] And now Ra7 would win.} Nd2 $2 {[%emt 0:00:03]} (35... Rd2+ 36. Rxd2 Nxd2) 36. Ne3 {[%emt 0:00:24][%csl LRb5,LRd1]} Rc1 {[%emt 0:00:07]} 37. Rxd2 {[%emt 0:00:03]} Nf8 {[%emt 0:00:04]} 38. Rc2 {[%emt 0:00:09]} Ra1 {[%emt 0:00:02]} 39. Qxb5 {[%emt 0:00:05]} Qa8 {[%emt 0:00:01]} 40. Qd5 {[%emt 0:00:07]} Qa6 {[%emt 0:00:01]} 41. Qxd6 {[%emt 0:00:08]} Qd3 {[%emt 0:00:02]} 42. Qxf8+ {[%emt 0:00:03]} Kh7 {[%emt 0:00:01] [#]} 43. Qc8 $1 {[%emt 0:01:10] Black must now prevent Qf5+.} Qxe3 {[%emt 0:00:02]} 44. Qf5+ {[%emt 0:00:04]} Kh8 {[%emt 0:00:19]} 45. Qf2 {[%emt 0:00:28]} Qxe4 {[%emt 0:00:03]} 46. Qg2 {[%emt 0:00:02]} Qxg4 {[%emt 0:00:07]} 47. d5 {[%emt 0:00:21]} f5 {[%emt 0:00:02]} 48. Rf2 {[%emt 0:00:04]} Rd1 {[%emt 0:01:33]} 49. Qf3 {[%emt 0:00:06]} Qa4 {[%emt 0:00:01]} 50. Qxf5 {[%emt 0:00:11]} Qa1 {[%emt 0:00:01]} 51. Qf3 {[%emt 0:00:08] Weighted Error Value: White=0.17 (very precise) /Black=0.40} (51. Qe4 $142 Kg8 52. Bd6 Qa8 53. Rf8+ Qxf8 54. Bxf8 Rf1 55. Bc5 Rd1 56. d6) 1-0

[Event "FIDE WTC Prel-B 2022"]
[Site "Jerusalem"]
[Date "2022.11.21"]
[Round "4.21"]
[White "Wojtaszek, Radoslaw"]
[Black "Radjabov, Teimour"]
[Result "1-0"]
[ECO "A29"]
[WhiteElo "2686"]
[BlackElo "2747"]
[Annotator "TA"]
[PlyCount "63"]
[EventDate "2022.11.20"]
[EventType "team-tourn"]
[EventCountry "ISR"]
[SourceTitle "playchess.com"]
[Source "ChessBase"]
[SourceQuality "1"]
[WhiteTeam "Poland"]
[BlackTeam "Azerbaijan"]
[WhiteTeamCountry "POL"]
[BlackTeamCountry "AZE"]
[TimeControl "2700+10"]

{[%evp 10,63,12,-2,26,8,15,0,0,0,2,0,0,8,7,4,13,0,0,0,0,0,0,0,0,0,0,0,0,0,0,0,16,43,43,50,41,41,72,0,280,262,297,248,226,210,287,272,272,281,29978,29979,29978,29979,29969,5781]} 1. c4 {[%emt 0:00:04]} Nf6 {[%emt 0:00:01]} 2. Nc3 {[%emt 0:00:02]} e5 {[%emt 0:00:03]} 3. Nf3 {[%emt 0:00:03]} Nc6 {[%emt 0:00:04]} 4. g3 {[%emt 0:00:06]} d5 {[%emt 0:00:02]} 5. cxd5 {[%emt 0:00:03]} Nxd5 {[%emt 0:00:02]} 6. Bg2 {[%emt 0:00:04][%cal Of3e5]} Bc5 {[%emt 0:00:02] A29: English Opening: Four Knights Variation with 4 g3.} 7. O-O {[%emt 0:00:16][%cal Of3e5]} O-O {[%emt 0:00:09]} 8. Qc2 {[%emt 0:00:07] Strongly threatening Nxd5.} Nd4 {[%emt 0:03:50] [#] The position is equal.} 9. Qe4 $146 {[%emt 0:00:20]} ({Predecessor:} 9. Nxd4 Nb4 10. Qb1 exd4 11. Ne4 Bb6 12. a3 Nd5 13. b4 Re8 14. Bb2 Bf5 15. d3 {½-½ (59) Sarana,A (2668)-Lazavik,D (2529) Chess.com INT 2022}) 9... Nxc3 {[%emt 0:06:23]} 10. dxc3 {[%emt 0:01:05]} Nxf3+ {[%emt 0:00:04]} 11. exf3 {[%emt 0:00:03]} Re8 {[%emt 0:05:27]} 12. Re1 {[%emt 0:12:13]} c6 {[%emt 0:03:31]} 13. f4 {[%emt 0:02:37]} Qb6 {[%emt 0:00:34]} 14. Be3 {[%emt 0:06:58]} Bxe3 {[%emt 0:00:12]} 15. Qxe3 {[%emt 0:00:20]} Qxb2 {[%emt 0:00:13]} 16. fxe5 {[%emt 0:00:50]} Bf5 {[%emt 0:01:31]} 17. a4 {[%emt 0:01:25]} f6 {[%emt 0:08:02]} 18. f4 {[%emt 0:00:05][%cal Og3g4]} Rad8 {[%emt 0:03:13]} 19. Bf1 {[%emt 0:01:04]} fxe5 {[%emt 0:03:52]} 20. Bc4+ {[%emt 0:04:31]} Be6 {[%emt 0:07:02]} 21. Rab1 {[%emt 0:02:01]} Qc2 {[%emt 0:01:30]} 22. Bxe6+ {[%emt 0:00:28]} Rxe6 {[%emt 0:00:02]} 23. Rxb7 {[%emt 0:00:02]} Rh6 {[%emt 0:00:52]} 24. Rxg7+ {[%emt 0:04:22]} Kh8 $2 {[%emt 0:00:16][%mdl 8192] [#]} (24... Kxg7 $2 25. Qxe5+ Rf6 26. Qe7+ Rf7 27. Qxd8 $18) (24... Kf8 $1 $11 {and Black is okay.} 25. h4 (25. Rxa7 Qxh2+ 26. Kf1 Qh1+ 27. Ke2 Rh2+) 25... Rd1) 25. h4 $1 $18 {[%emt 0:00:36]} Re6 {[%emt 0:00:21]} (25... e4 26. Rxa7) 26. Rg5 {[%emt 0:01:57]} ({Much less strong is} 26. Rxa7 $6 Rd3 27. Qe4 (27. Ra8+ Kg7 $16) 27... Rxg3+ 28. Kf1 Qxe4 29. Rxe4 Rxc3 $18) 26... e4 {[%emt 0:01:12]} 27. f5 $40 {[%emt 0:00:02][%cal Bf4f5,Bf5f6,Bf6f7][%mdl 160] White attacks with force.} ({But not} 27. Qxa7 Qxc3 28. Kh2 h6) 27... Re7 {[%emt 0:00:47]} 28. f6 {[%emt 0:04:26]} Rf7 {[%emt 0:00:00]} 29. Qxe4 {[%emt 0:00:52] The board is on fire.} Qxc3 {[%emt 0:00:22] [#]} (29... Qxe4 $18 30. Rxe4 Rxf6) 30. Qe8+ $3 {[%emt 0:00:55][%mdl 512] White mates.} Rf8 {[%emt 0:00:02]} 31. f7 {[%emt 0:00:13]} Qd4+ {[%emt 0:00:06]} 32. Kh1 {[%emt 0:00:19] Weighted Error Value: White=0.07 (flawless) /Black=0.39} (32. Kg2 $142 Qd2+ 33. Re2 Rfxe8 34. fxe8=Q+ Rxe8 35. Rxd2 h6 36. Rg6 c5 37. Rxh6+ Kg7 38. Rc6) 1-0